fUST/lending_fUST_20240418
["ID","MTS","AMOUNT","RATE_DAILY","PERIOD"]
[322838827,1713383439431,-274.37373738,0.000299,2]
[322838828,1713383439440,-274.37373738,0.000299,2]
[322838829,1713383439448,-274.37373738,0.000299,2]
[322838830,1713383439457,-274.37373738,0.000299,2]
[322838831,1713383439467,-274.37373738,0.000299,2]
[322838832,1713383439476,-274.37373738,0.000299,2]
[322838833,1713383439485,-274.37373738,0.000299,2]
[322838834,1713383439494,-166.666666,0.00029962,2]
[322838835,1713383439504,-263.0,0.0003,2]
[322838836,1713383439513,-823.0,0.00030149,2]
[322838837,1713383439523,-429.41391301,0.000304,2]
[322838838,1713383439532,-166.666666,0.00030603,2]
[322838839,1713383439541,-320.4553623,0.000308,10]
[322838840,1713383439551,-155.28288805,0.00031259,4]
[322838841,1713383439560,-574.59242208,0.00031794,4]
[322838842,1713383439569,-354.8418199,0.00031794,4]
[322838843,1713383439578,-776.92671129,0.00031799,5]
[322838844,1713383439587,-500.0,0.00031896,2]
[322838845,1713383439597,-395.57307798,0.00031896,2]
[322838846,1713383439606,-500.0,0.00031896,2]
[322838847,1713383439616,-367.31431724,0.00031896,2]
[322838848,1713383439625,-500.0,0.00031896,2]
[322838849,1713383439634,-500.0,0.00031896,2]
[322838850,1713383439642,-500.0,0.00031896,2]
[322838851,1713383439651,-476.96134607,0.00031896,2]
[322838852,1713383439660,-500.0,0.00031896,2]
[322838853,1713383439670,-500.0,0.00031896,2]
[322838854,1713383439679,-500.0,0.00031896,2]
[322838855,1713383439691,-500.0,0.00031896,2]
[322838856,1713383439700,-500.0,0.00031896,2]
[322838857,1713383439710,-500.0,0.00031896,2]
[322838858,1713383439718,-500.0,0.00031896,2]
[322838859,1713383439727,-500.0,0.00031896,2]
[322838860,1713383439736,-500.0,0.00031896,2]
[322838861,1713383439745,-470.72269089,0.00031897,4]
[322838862,1713383439755,-1310.15475715,0.00031897,4]
[322838863,1713383439764,-38006.03333636,0.00031897,4]
[322839137,1713383446908,-234.0,0.0003,2]
[322839139,1713383446917,-24834.2397218,0.00031897,4]
[322839140,1713383446926,-525.74547902,0.00031897,4]
[322839143,1713383446936,-211.83113783,0.00031897,4]
[322839144,1713383446947,-258.39586582,0.00031897,4]
[322839146,1713383446956,-269.41883597,0.00031897,4]
[322839149,1713383446966,-295.6041069,0.00031897,2]
[322839151,1713383446975,-5000.0,0.00032,2]
[322839152,1713383446984,-191.18536531,0.00032,4]
[322839154,1713383446993,-1378.0,0.00032,2]
[322839156,1713383447002,-1210.91030182,0.00032,3]
[322839158,1713383447011,-429.41391301,0.0003215,2]
[322839159,1713383447020,-14592.5779964,0.00032173,2]
[322839160,1713383447033,-153.0,0.00032336,2]
[322839161,1713383447043,-153.0,0.00032336,2]
[322839162,1713383447052,-674.0701734,0.00032894,4]
[322839163,1713383447061,-306.2900348,0.00032896,2]
[322839164,1713383447069,-5200.0,0.000329,9]
[322839165,1713383447078,-234.0,0.00033,2]
[322839166,1713383447089,-234.0,0.00033,2]
[322839167,1713383447098,-153.0,0.00033056,2]
[322839168,1713383447106,-153.0,0.00033158,2]
[322839169,1713383447116,-153.0,0.00033158,2]
[322839170,1713383447125,-153.0,0.00033158,2]
[322839172,1713383447134,-153.0,0.00033158,2]
[322839174,1713383447143,-153.0,0.00033158,2]
[322839176,1713383447151,-153.0,0.00033158,2]
[322839178,1713383447160,-1152.0,0.00033164,2]
[322839180,1713383447169,-337.614814,0.00033165,2]
[322839182,1713383447178,-218.07271,0.00033165,2]
[322839183,1713383447187,-208.030299,0.00033165,2]
[322839185,1713383447196,-2000.0,0.000337,7]
[322839187,1713383447205,-203.2761986,0.00033718,2]
[322839189,1713383447214,-203.2761986,0.00033718,2]
[322839191,1713383447224,-311.094092,0.00033718,2]
[322839193,1713383447232,-3968.17260111,0.000339,2]
[322839195,1713383447241,-429.41391301,0.000339,2]
[322839197,1713383447250,-417.0,0.00033913,2]
[322839198,1713383447259,-210.078,0.00033913,2]
[322839200,1713383447268,-1210.91030182,0.0003392,3]
[322839202,1713383447277,-153.0,0.0003398,2]
[322839204,1713383447292,-153.0,0.0003398,2]
[322839207,1713383447301,-153.0,0.0003398,2]
[322839209,1713383447310,-153.0,0.0003398,2]
[322839210,1713383447319,-153.0,0.0003398,2]
[322839212,1713383447328,-153.0,0.0003398,2]
[322839214,1713383447337,-153.0,0.0003398,2]
[322839217,1713383447347,-153.0,0.0003398,2]
[322839219,1713383447356,-153.0,0.0003398,2]
[322839221,1713383447365,-153.0,0.0003398,2]
[322839222,1713383447375,-153.0,0.0003398,2]
[322839224,1713383447384,-153.0,0.0003398,2]
[322839226,1713383447393,-153.0,0.0003398,2]
[322839229,1713383447402,-153.0,0.0003398,2]
[322839231,1713383447411,-153.0,0.0003398,2]
[322839233,1713383447421,-153.0,0.0003398,2]
[322839234,1713383447430,-157.2335145,0.0003398,2]
[322839236,1713383447439,-7862.12687248,0.00033994,2]
[322839511,1713384643033,-541.78890451,0.00025171,2]
[322839512,1713384643082,-1583.97669832,0.00025171,2]
[322839513,1713384643093,-351.3027513,0.00025171,2]
[322839514,1713384643102,-937.89373734,0.00025171,2]
[322839515,1713384643113,-158.857458,0.00025172,2]
[322839516,1713384643122,-521.03498526,0.00025172,2]
[322839517,1713384643131,-243.24834116,0.00025173,2]
[322839518,1713384643142,-329.35470215,0.00025173,2]
[322839519,1713384643152,-688.59429255,0.00025173,2]
[322839520,1713384643161,-300.0,0.00025174,2]
[322839521,1713384643170,-523.80732363,0.00025174,4]
[322839522,1713384643179,-861.62641099,0.00025195,2]
[322839523,1713384643188,-168.681896,0.00025226,2]
[322839524,1713384643197,-1707.31319851,0.00025476,2]
[322839588,1713385831990,-521.03498526,0.00023317,2]
[322839589,1713385832000,-602.61216035,0.00023317,2]
[322839590,1713385832010,-76.35285439,0.00023317,2]
[322839591,1713385832046,-612.24143816,0.00023317,2]
[322839592,1713385832055,-672.6914059,0.00023317,2]
[322839593,1713385832064,-158.857458,0.00023318,2]
[322839594,1713385832074,-1423.25136662,0.00023376,2]
[322839655,1713385838045,-2011.24006399,0.00021276,2]
[322839656,1713385838054,-200.0,0.00024658,15]
[322839657,1713385838063,-168.788426,0.00025143,2]
[322839658,1713385838073,-200.0,0.00025417,2]
[322839659,1713385838082,-198.16376793,0.00025425,2]
[322839661,1713385838091,-300.0,0.00025475,2]
[322839663,1713385838101,-465.05359628,0.00025476,2]
[322839664,1713385838110,-188.33850268,0.00025476,2]
[322839665,1713385838120,-1765.00944109,0.00025476,2]
[322839666,1713385838129,-10102.36070328,0.00025476,2]
[322839667,1713385838138,-3062.64298016,0.00025476,2]
[322839668,1713385838147,-679.81087244,0.00025613,2]
[322839669,1713385838155,-253.12061258,0.00026098,5]
[322839670,1713385838165,-2011.24006399,0.00026276,2]
[322839672,1713385838174,-278.77006488,0.00027,2]
[322839697,1713385843211,-53.30452765,0.00027,2]
[322839699,1713385843220,-154.84515485,0.00027,2]
[322839701,1713385843229,-426.021679,0.00027397,2]
[322839703,1713385843239,-168.513191,0.00027397,2]
[322839705,1713385843248,-211.37349857,0.00027397,2]
[322839708,1713385843260,-92.47983343,0.00027397,2]
[322839710,1713385843269,-1000.0,0.00027397,2]
[322839712,1713385843279,-166.666666,0.00027397,2]
[322839714,1713385843288,-242.876991,0.00027397,2]
[322839716,1713385843297,-2000.0,0.000279,2]
[322839718,1713385843306,-171.76556522,0.00027938,2]
[322839720,1713385843315,-275.25570834,0.00027999,2]
[322839722,1713385843324,-441.02634948,0.00028,2]
[322840039,1713387032455,-154.84515485,0.00023719,2]
[322840041,1713387032465,-184.17263113,0.0002372,2]
[322840043,1713387032477,-57.03404803,0.0002372,2]
[322840045,1713387032486,-672.6914059,0.0002372,2]
[322840048,1713387032496,-243.24834116,0.00023721,2]
[322840050,1713387032505,-354.39971412,0.00023721,2]
[322840051,1713387032515,-158.857458,0.00023721,2]
[322840052,1713387032524,-351.43291509,0.00023721,2]
[322840053,1713387032533,-178.81114694,0.00023721,2]
[322840056,1713387032549,-1131.34361021,0.00023721,2]
[322840058,1713387032559,-2096.98803724,0.00023722,2]
[322840059,1713387032568,-1875.79814985,0.00023723,2]
[322840060,1713387032577,-300.0,0.00023723,2]
[322840061,1713387032586,-300.0,0.00023723,2]
[322840063,1713387032595,-154.84515485,0.00023724,2]
[322840065,1713387032605,-237.92490957,0.00023724,2]
[322840067,1713387032614,-3742.37168361,0.00023724,2]
[322840069,1713387032624,-2125.76560283,0.00023725,2]
[322840071,1713387032633,-834.96285184,0.00023729,2]
[322840073,1713387032645,-1262.0251854,0.00023729,2]
[322840075,1713387032654,-251.76133107,0.00023732,2]
[322840077,1713387032665,-6669.36501853,0.00023732,2]
[322840079,1713387032675,-2486.9154783,0.00023749,2]
[322840081,1713387032684,-36.86951907,0.0002464,2]
[322840236,1713387038291,-154.84515485,0.00023718,2]
[322840238,1713387038301,-688.59429255,0.00023718,2]
[322840240,1713387038310,-670.58253228,0.0002464,2]
[322840242,1713387038319,-200.0,0.00024658,15]
[322840243,1713387038328,-280.0,0.00024658,2]
[322840245,1713387038338,-750.00199757,0.00024773,2]
[322840247,1713387038348,-49036.41911761,0.00024773,2]
[322840248,1713387038357,-168.918986,0.00024776,2]
[322840249,1713387038366,-377.0,0.00024932,2]
[322840250,1713387038375,-377.0,0.00025,2]
[322840251,1713387038384,-377.0,0.00025205,2]
[322840252,1713387038395,-377.0,0.00025479,2]
[322840254,1713387038404,-420.0,0.00025734,2]
[322840256,1713387038412,-377.0,0.00025753,2]
[322840258,1713387038422,-1240.76955075,0.000258,2]
[322840259,1713387038432,-624.37260257,0.00025872,2]
[322840261,1713387038441,-377.0,0.0002589,2]
[322840262,1713387038450,-420.0,0.00026095,2]
[322840264,1713387038459,-282.38874774,0.00026596,2]
[322840265,1713387038469,-154.86062544,0.00027,2]
[322840267,1713387038478,-332.07459253,0.00027,2]
[322840268,1713387038488,-620.21863013,0.00027166,2]
[322840270,1713387038497,-377.0,0.00027185,2]
[322840272,1713387038506,-387.0,0.00027185,2]
[322840273,1713387038515,-204.703363,0.00027397,2]
[322840275,1713387038524,-1000.0,0.00027397,2]
[322840276,1713387038533,-404.720595,0.00027397,2]
[322840278,1713387038542,-166.666666,0.00027397,2]
[322840279,1713387038551,-500.0,0.00027574,2]
[322840281,1713387038560,-603.41023243,0.00027574,2]
[322840283,1713387038569,-500.0,0.00027574,2]
[322840284,1713387038578,-612.26005722,0.00027574,2]
[322840286,1713387038587,-343.80725993,0.00027574,2]
[322840288,1713387038595,-247.2126059,0.00027574,2]
[322840289,1713387038605,-500.0,0.00027574,2]
[322840291,1713387038614,-500.0,0.00027574,2]
[322840292,1713387038623,-500.0,0.00027574,2]
[322840294,1713387038632,-500.0,0.00027574,2]
[322840295,1713387038642,-21756.26499091,0.00027575,2]
[322840296,1713387038651,-318.55632007,0.0002782,2]
[322840297,1713387038660,-587.0,0.00027915,2]
[322840298,1713387038669,-520.61218234,0.00027968,2]
[322840299,1713387038678,-233.08289041,0.00027996,2]
[322840300,1713387038686,-232.13723148,0.00027996,2]
[322840301,1713387038695,-186.05352053,0.00027996,2]
[322840302,1713387038704,-243.60905786,0.00027996,2]
[322840303,1713387038713,-217.04336039,0.00027996,2]
[322840304,1713387038722,-225.21113016,0.00027996,2]
[322840305,1713387038732,-788.15969566,0.00027996,2]
[322840306,1713387038741,-192.82633125,0.00027996,2]
[322840307,1713387038752,-277.31237142,0.00027996,2]
[322840308,1713387038761,-175.35435654,0.00027996,2]
[322840309,1713387038770,-281.21860613,0.00027996,2]
[322840310,1713387038780,-159.94654956,0.00027996,2]
[322840311,1713387038789,-294.66059258,0.00027996,2]
[322840312,1713387038798,-155.65800664,0.00027996,2]
[322840313,1713387038807,-227.95896244,0.00027996,2]
[322840314,1713387038818,-244.19089589,0.00027996,2]
[322840315,1713387038827,-180.98214575,0.00027996,2]
[322840316,1713387038836,-214.09821548,0.00027996,2]
[322840317,1713387038845,-263.03739926,0.00027996,2]
[322840318,1713387038854,-216.43597525,0.00027996,2]
[322840319,1713387038863,-213.2971147,0.00027996,2]
[322840320,1713387038873,-560.98715817,0.00027998,2]
[322840321,1713387038881,-157.4992408,0.00027998,2]
[322840322,1713387038892,-525.49067281,0.00027998,2]
[322840323,1713387038900,-291.7249986,0.00027998,2]
[322840324,1713387038909,-161.39098283,0.00027998,2]
[322840325,1713387038918,-249.42201248,0.00027998,2]
[322840326,1713387038927,-159.2042998,0.00027998,2]
[322840327,1713387038936,-298.43292043,0.00027998,2]
[322840328,1713387038945,-530.65959903,0.00027999,2]
[322840329,1713387038954,-44352.7279226,0.00028,2]
[322840330,1713387038966,-20708.64822092,0.00028,2]
[322840331,1713387038977,-8755.95633874,0.00028,2]
[322840378,1713387040387,-5741.64116826,0.00028,2]
[322840380,1713387040397,-10102.36070328,0.00028,2]
[322840382,1713387040406,-755.44188678,0.00028,2]
[322840384,1713387040415,-3062.64298016,0.00028,2]
[322840386,1713387040424,-292.35872206,0.00028,2]
[322840388,1713387040433,-166.666666,0.00028038,2]
[322840391,1713387040442,-377.0,0.00028272,2]
[322840392,1713387040452,-377.0,0.00028479,2]
[322840394,1713387040461,-166.666666,0.00028679,2]
[322840396,1713387040470,-587.0,0.00028705,2]
[322840398,1713387040479,-3729.33559342,0.0002877,2]
[322840400,1713387040488,-171.342359,0.0002877,2]
[322840402,1713387040496,-151.0,0.0002877,2]
[322840404,1713387040506,-151.0,0.0002877,2]
[322840406,1713387040515,-175.749081,0.0002877,2]
[322840408,1713387040524,-477.35,0.0002877,2]
[322840410,1713387040533,-477.35,0.0002877,2]
[322840412,1713387040542,-151.0,0.0002877,2]
[322840414,1713387040552,-151.0,0.0002877,2]
[322840417,1713387040561,-151.0,0.0002877,2]
[322840419,1713387040570,-1379.043034,0.0002877,2]
[322840420,1713387040579,-1379.043034,0.0002877,2]
[322840422,1713387040588,-318.55632004,0.0002884,2]
[322840425,1713387040598,-151.0,0.00028954,2]
[322840426,1713387040606,-151.0,0.00028954,2]
[322840428,1713387040616,-174.228559,0.00028954,2]
[322840431,1713387040625,-174.228559,0.00028954,2]
[322840433,1713387040634,-268.07680906,0.00028995,2]
[322840435,1713387040645,-388.76073358,0.00028995,2]
[322840436,1713387040654,-500.0,0.00028995,2]
[322840438,1713387040663,-500.0,0.00028995,2]
[322840440,1713387040672,-500.0,0.00028995,2]
[322840442,1713387040681,-343.87391871,0.00028995,2]
[322840444,1713387040690,-413.27348005,0.00028995,2]
[322840446,1713387040699,-500.0,0.00028995,2]
[322840449,1713387040708,-500.0,0.00028995,2]
[322840450,1713387040717,-500.0,0.00028995,2]
[322840452,1713387040726,-500.0,0.00028995,2]
[322840455,1713387040737,-500.0,0.00028995,2]
[322840457,1713387040747,-500.0,0.00028995,2]
[322840458,1713387040757,-500.0,0.00028995,2]
[322840460,1713387040766,-500.0,0.00028995,2]
[322840463,1713387040776,-500.0,0.00028995,2]
[322840465,1713387040786,-500.0,0.00028995,2]
[322840467,1713387040794,-500.0,0.00028995,2]
[322840468,1713387040803,-500.0,0.00028995,2]
[322840471,1713387040814,-500.0,0.00028995,2]
[322840473,1713387040823,-310.05163962,0.00028995,2]
[322840474,1713387040832,-500.0,0.00028995,2]
[322840476,1713387040841,-500.0,0.00028995,2]
[322840478,1713387040850,-500.0,0.00028995,2]
[322840480,1713387040860,-500.0,0.00028995,2]
[322840482,1713387040869,-798.10159688,0.00028997,2]
[322840485,1713387040882,-223.28967078,0.00028997,2]
[322840486,1713387040893,-170.05070033,0.00028997,2]
[322840488,1713387040904,-538.67989094,0.00028997,4]
[322840489,1713387040913,-151.0,0.00028997,2]
[322840490,1713387040921,-161.05952554,0.00028998,2]
[322840491,1713387040930,-21392.70974975,0.00029,2]
[322840492,1713387040942,-16132.57767296,0.00029,2]
[322840493,1713387040951,-5000.0,0.00029,2]
[322840494,1713387040960,-151.0,0.00029,2]
[322840495,1713387040968,-151.0,0.00029,2]
[322840496,1713387040977,-151.0,0.00029,2]
[322840497,1713387040986,-174.228559,0.00029,2]
[322840498,1713387040995,-174.228559,0.00029,2]
[322840499,1713387041003,-151.0,0.00029,2]
[322840500,1713387041012,-1576.985576,0.00029,2]
[322840501,1713387041021,-1576.985576,0.00029,2]
[322840502,1713387041030,-151.0,0.00029,2]
[322840503,1713387041038,-193.918794,0.00029,2]
[322840504,1713387041047,-477.35,0.00029,2]
[322840505,1713387041056,-477.35,0.00029,2]
[322840506,1713387041065,-151.0,0.00029,2]
[322840507,1713387041074,-151.0,0.00029,2]
[322840508,1713387041082,-151.0,0.00029,2]
[322840509,1713387041091,-1379.043034,0.00029,2]
[322840510,1713387041100,-1379.043034,0.00029,2]
[322840511,1713387041109,-166.666666,0.00029321,2]
[322840512,1713387041118,-377.0,0.0002936,2]
[322840514,1713387041126,-377.0,0.00029774,2]
[322840515,1713387041136,-1790.54442132,0.0002978,10]
[322840517,1713387041147,-10000.0,0.00029798,2]
[322840519,1713387041156,-151.0,0.00029798,2]
[322840521,1713387041164,-230.586771,0.00029798,2]
[322840523,1713387041173,-151.0,0.00029798,2]
[322840525,1713387041183,-174.228559,0.00029798,2]
[322840527,1713387041192,-174.228559,0.00029798,2]
[322840529,1713387041201,-269.164131,0.00029798,2]
[322840531,1713387041211,-1576.985576,0.00029798,2]
[322840533,1713387041221,-1576.985576,0.00029798,2]
[322840535,1713387041230,-151.0,0.00029798,2]
[322840537,1713387041239,-477.35,0.00029798,2]
[322840539,1713387041248,-477.35,0.00029798,2]
[322840541,1713387041259,-151.0,0.00029798,2]
[322840543,1713387041268,-151.0,0.00029798,2]
[322840545,1713387041277,-1379.043034,0.00029798,2]
[322840546,1713387041286,-318.55632004,0.0002986,2]
[322840549,1713387041296,-5313.02764777,0.000299,2]
[322840551,1713387041306,-152.976705,0.000299,2]
[322840553,1713387041316,-151.359188,0.000299,2]
[322840554,1713387041325,-1576.985576,0.000299,2]
[322840556,1713387041335,-1576.985576,0.000299,2]
[322840558,1713387041344,-151.0,0.000299,2]
[322840560,1713387041354,-477.35,0.000299,2]
[322840562,1713387041363,-477.35,0.000299,2]
[322840564,1713387041372,-151.0,0.000299,2]
[322840566,1713387041381,-151.0,0.000299,2]
[322840568,1713387041392,-1379.043034,0.000299,2]
[322840570,1713387041401,-166.666666,0.00029962,2]
[322840572,1713387041411,-470.72269089,0.00029998,2]
[322840574,1713387041420,-151.0,0.00029998,2]
[322840577,1713387041430,-174.228559,0.00029998,2]
[322840578,1713387041439,-174.228559,0.00029998,2]
[322840581,1713387041449,-33163.67893955,0.00029999,2]
[322841097,1713387950137,-659.43850789,0.0002096,2]
[322841098,1713387950160,-672.6914059,0.00020961,2]
[322841099,1713387950180,-563.87316233,0.00020962,2]
[322841100,1713387950201,-351.43291509,0.00020962,2]
[322841101,1713387950222,-154.84515485,0.00020963,2]
[322841102,1713387950242,-2125.76560283,0.00020963,2]
[322841103,1713387950262,-965.39339888,0.00020964,2]
[322841104,1713387950281,-237.92490957,0.00020965,2]
[322841105,1713387950301,-688.59429255,0.00020966,2]
[322841106,1713387950321,-300.0,0.00020968,2]
[322841107,1713387950341,-300.0,0.00020969,2]
[322841108,1713387950362,-4360.91133566,0.00021,2]
[322841109,1713387950383,-158.857458,0.00022808,2]
[322841110,1713387950404,-420.0,0.00022809,2]
[322841111,1713387950425,-243.24834116,0.00023065,2]
[322841112,1713387950445,-420.0,0.00023066,2]
[322841113,1713387950465,-844.7745796,0.00024389,2]
[322841114,1713387950486,-163.644784,0.00024513,2]
[322841115,1713387950506,-452.91552653,0.00024771,2]
[322841116,1713387950526,-587.0,0.00024812,2]
[322841117,1713387950545,-200.0,0.00024886,15]
[322841118,1713387950565,-168.788426,0.00024975,2]
[322841119,1713387950586,-200.0,0.00025269,2]
[322841120,1713387950608,-587.0,0.00025372,2]
[322841121,1713387950628,-288.40751837,0.00025898,2]
[322841122,1713387950648,-154.86062544,0.00025899,2]
[322841123,1713387950669,-3866.85493876,0.00025899,2]
[322841124,1713387950688,-1390.49256712,0.00025899,2]
[322841125,1713387950708,-220.93518029,0.00025899,2]
[322841126,1713387950729,-1019.92938493,0.00026399,2]
[322841127,1713387950749,-823.0,0.00026991,2]
[322841128,1713387950769,-253.12061258,0.00026998,5]
[322841129,1713387950788,-332.07459253,0.00027,2]
[322841130,1713387950809,-161.469583,0.00027397,2]
[322841131,1713387950829,-166.666666,0.00027397,2]
[322841132,1713387950853,-1000.0,0.00027397,2]
[322841133,1713387950875,-639.99646925,0.00027719,2]
[322841134,1713387950895,-3206.77941084,0.000278,2]
[322841135,1713387950914,-2000.0,0.000279,2]
[322841136,1713387950935,-823.0,0.0002791,2]
[322841137,1713387950955,-159.27816002,0.00027929,2]
[322841138,1713387950975,-161.77699218,0.00027998,2]
[322841139,1713387950993,-2619.93201651,0.00027998,2]
[322841140,1713387951014,-203.83136061,0.00027998,2]
[322841141,1713387951038,-258.60438532,0.00027999,2]
[322841142,1713387951059,-320.23397396,0.00027999,2]
[322841143,1713387951084,-500.0,0.00027999,2]
[322841144,1713387951109,-288.84589119,0.00027999,2]
[322841145,1713387951129,-5581.76197265,0.00027999,2]
[322841146,1713387951149,-188.33850268,0.00028,2]
[322841147,1713387951168,-80000.0,0.00028,2]
[322841148,1713387951188,-35540.41943442,0.00028029,2]
[322841149,1713388028111,-253.12061258,0.00025889,5]
[322841150,1713388028132,-3206.77941084,0.00025929,2]
[322841151,1713388028154,-311.233301,0.00027285,2]
[322841152,1713388028174,-2125.76560283,0.00027971,2]
[322841153,1713388028195,-351.43291509,0.00027971,2]
[322841154,1713388028215,-243.24834116,0.00027971,2]
[322841155,1713388028236,-158.857458,0.00027971,2]
[322841156,1713388028256,-965.39339888,0.00027971,2]
[322841157,1713388028276,-332.07459253,0.00027971,2]
[322841158,1713388028295,-659.43850789,0.00027972,2]
[322841159,1713388028315,-563.87316233,0.00027972,2]
[322841160,1713388028335,-154.82968734,0.00027972,2]
[322841161,1713388028356,-237.92490957,0.00027972,2]
[322841162,1713388028376,-688.59429255,0.00027972,2]
[322841163,1713388028395,-198.16376793,0.00027973,2]
[322841164,1713388028417,-300.0,0.00028028,2]
[322841165,1713388028437,-300.0,0.00028028,2]
[322841166,1713388028457,-21443.73526413,0.00028029,2]
[322841167,1713388028477,-154.82968734,0.00028029,2]
[322841168,1713388028497,-755.44188678,0.00028029,2]
[322841169,1713388028518,-10102.36070328,0.00028029,2]
[322841170,1713388028537,-166.666666,0.00028038,2]
[322841171,1713388028557,-309.62845823,0.00028496,2]
[322841172,1713388028576,-159.27816002,0.00028586,2]
[322841173,1713388028595,-166.666666,0.00028679,2]
[322841174,1713388028619,-154.86062544,0.00028766,2]
[322841175,1713388028638,-2619.93201651,0.00028766,2]
[322841176,1713388028659,-203.83136061,0.00028766,2]
[322841177,1713388028678,-3866.85493876,0.00028766,2]
[322841178,1713388028697,-288.40751837,0.00028766,2]
[322841179,1713388028717,-220.93518029,0.00028766,2]
[322841180,1713388028736,-161.77699218,0.00028766,2]
[322841181,1713388028756,-1390.49256712,0.00028766,2]
[322841182,1713388028775,-5581.76197265,0.00028766,2]
[322841183,1713388028794,-419.00074443,0.00028767,2]
[322841184,1713388028813,-452.91552653,0.00028767,2]
[322841185,1713388028833,-320.23397396,0.00028767,2]
[322841186,1713388028854,-500.0,0.00028767,2]
[322841187,1713388028873,-258.60438532,0.00028767,2]
[322841188,1713388028892,-288.84589119,0.00028767,2]
[322841189,1713388028913,-42333.55594311,0.00028769,2]
[322841190,1713388028934,-151.0,0.00028769,2]
[322841191,1713388028954,-965.330124,0.00028769,2]
[322841192,1713388028977,-965.330124,0.00028769,2]
[322841193,1713388028997,-445.29110736,0.00028769,2]
[322841194,1713388029017,-500.0,0.00028769,2]
[322841195,1713388029039,-500.0,0.00028769,2]
[322841196,1713388029059,-500.0,0.00028769,2]
[322841197,1713388029080,-500.0,0.00028769,2]
[322841198,1713388029103,-507.96454236,0.00028769,2]
[322841199,1713388029129,-500.0,0.00028769,2]
[322841200,1713388029149,-500.0,0.00028769,2]
[322841201,1713388029168,-500.0,0.00028769,2]
[322841202,1713388029189,-492.94257995,0.00028769,2]
[322841203,1713388029210,-184477.39354304,0.0002877,2]
[322841204,1713388029230,-151.0,0.0002877,2]
[322841205,1713388029250,-286.41,0.0002877,2]
[322841206,1713388029271,-286.41,0.0002877,2]
[322841207,1713388029291,-154.042065,0.0002877,2]
[322841208,1713388029312,-151.0,0.0002877,2]
[322841209,1713388029332,-151.0,0.0002877,2]
[322841210,1713388029353,-151.0,0.0002877,2]
[322841211,1713388029375,-151.0,0.0002877,2]
[322841212,1713388029397,-965.330124,0.0002877,2]
[322841213,1713388029423,-965.330124,0.0002877,2]
[322841214,1713388029444,-842.32290487,0.00029,2]
[322841215,1713388029465,-620.99982346,0.00029105,2]
[322841216,1713388029487,-159.27816002,0.00029242,2]
[322841217,1713388029507,-166.666666,0.00029321,2]
[322841218,1713388029527,-158.99062783,0.00029699,3]
[322841219,1713388029548,-159.27816002,0.00029899,2]
[322841220,1713388029567,-3932.80233579,0.00029899,2]
[322841221,1713388029586,-340.24505683,0.000299,2]
[322841222,1713388029607,-340.24505683,0.000299,2]
[322841223,1713388029626,-340.24505683,0.000299,2]
[322841224,1713388029646,-340.24505683,0.000299,2]
[322841225,1713388029672,-340.24505683,0.000299,2]
[322841226,1713388029692,-340.24505683,0.000299,2]
[322841227,1713388029818,-340.24505683,0.000299,2]
[322841228,1713388029838,-340.24505683,0.000299,2]
[322841229,1713388029858,-340.24505683,0.000299,2]
[322841230,1713388029877,-340.24505683,0.000299,2]
[322841231,1713388029897,-340.24505683,0.000299,2]
[322841232,1713388029921,-340.24505683,0.000299,2]
[322841233,1713388029941,-340.24505683,0.000299,2]
[322841234,1713388029960,-340.24505683,0.000299,2]
[322841235,1713388029980,-340.24505683,0.000299,2]
[322841236,1713388030000,-340.24505683,0.000299,2]
[322841237,1713388030019,-340.24505683,0.000299,2]
[322841238,1713388030039,-340.24505683,0.000299,2]